[Event "46th GRE-chT Premier 2018"]
[Site "Rio Achaia"]
[Date "2018.07.11"]
[Round "2"]
[White "Poulopoulos, Ioannis"]
[Black "Hadzimanolis, Antonios"]
[Result "1/2-1/2"]
[ECO "A34"]
[WhiteElo "2268"]
[BlackElo "2246"]
[Annotator "NA"]
[PlyCount "87"]
[EventDate "2018.07.10"]
[EventType "team-tourn"]
[EventCountry "GRE"]
[SourceTitle "playchess.com"]
[Source "ChessBase"]
[SourceQuality "1"]
[TimeControl "40/5400+30:1800+30"]

1. c4 {[%emt 0:00:00]} Nf6 {[%emt 0:00:00]} 2. Nc3 {[%emt 0:00:00]} c5 {[%emt 0:01:43]} 3. g3 {[%emt 0:00:18]} g6 {[%emt 0:03:11]} 4. Bg2 {[%emt 0:00:14]} Bg7 {[%emt 0:00:01]} 5. e3 {[%emt 0:00:51]} O-O {[%emt 0:00:08]} 6. Nge2 {[%emt 0:00:20]} d6 {[%emt 0:02:08]} 7. O-O {[%emt 0:02:55]} Nc6 {[%emt 0:16:32]} 8. b3 {[%emt 0:00:41]} Bf5 {[%emt 0:08:24]} 9. d4 {[%emt 0:07:00]} cxd4 {[%emt 0:01:25]} 10. Nxd4 {[%emt 0:08:16]} Nxd4 {[%emt 0:00:34]} 11. exd4 {[%emt 0:00:07]} Qd7 $14 {[%emt 0:00:21]} 12. Bb2 {[%emt 0:02:42]} Bh3 {[%emt 0:00:48]} 13. Ne2 {[%emt 0:02:41]} Bxg2 {[%emt 0:02:43]} 14. Kxg2 {[%emt 0:00:08]} d5 {[%emt 0:04:43]} 15. c5 {[%emt 0:03:55]} h5 {[%emt 0:03:22]} 16. h4 {[%emt 0:05:11]} Ng4 {[%emt 0:10:05]} 17. Nf4 {[%emt 0:07:21]} Rac8 {[%emt 0:11:18]} 18. Re1 {[%emt 0:06:23]} Nh6 {[%emt 0:08:36]} 19. Nd3 {[%emt 0:03:05]} Nf5 {[%emt 0:00:25]} 20. Ne5 {[%emt 0:03:53]} Bxe5 {[%emt 0:00:12]} 21. Rxe5 {[%emt 0:00:09]} f6 {[%emt 0:01:38]} 22. Re1 {[%emt 0:01:13]} Kf7 {[%emt 0:00:55]} 23. a4 {[%emt 0:07:27]} Rh8 {[%emt 0:00:46]} 24. Bc1 {[%emt 0:09:33]} b6 {[%emt 0:06:52]} 25. b4 {[%emt 0:01:46]} a5 {[%emt 0:00:09]} 26. cxb6 {[%emt 0:06:40]} Rc4 {[%emt 0:00:54]} 27. bxa5 {[%emt 0:02:33]} Rxd4 {[%emt 0:01:26]} 28. Qb3 {[%emt 0:00:29]} Qb7 {[%emt 0:03:21]} 29. Bb2 {[%emt 0:09:32]} Rc4 {[%emt 0:00:54]} 30. Rad1 {[%emt 0:04:32]} Ra8 {[%emt 0:01:55]} 31. Qb5 {[%emt 0:00:44]} e6 {[%emt 0:01:43]} 32. Ba3 {[%emt 0:02:43]} d4+ {[%emt 0:02:10]} 33. Kg1 {[%emt 0:01:04]} Rc3 {[%emt 0:00:28]} 34. Rd3 {[%emt 0:00:26]} Rxd3 {[%emt 0:00:14]} 35. Qxd3 {[%emt 0:00:03]} Rxa5 {[%emt 0:00:04]} 36. Qb3 {[%emt 0:00:05]} Rd5 {[%emt 0:01:49]} 37. Qb4 {[%emt 0:01:55]} Rd6 {[%emt 0:01:41]} 38. a5 {[%emt 0:00:35]} d3 {[%emt 0:00:35]} 39. Rd1 {[%emt 0:01:16]} Qf3 {[%emt 0:02:49]} 40. Rd2 {[%emt 0:00:00]} Nxg3 {[%emt 0:00:00]} 41. fxg3 {[%emt 0:03:46]} Qxg3+ {[%emt 0:02:28]} 42. Kf1 {[%emt 0:05:48]} Qf3+ {[%emt 0:01:03]} 43. Kg1 {[%emt 0:00:14]} Qg3+ {[%emt 0:00:20]} 44. Kf1 {[%emt 0:01:00]} 1/2-1/2

[Event "46th GRE-chT Premier 2018"]
[Site "Rio Achaia"]
[Date "2018.07.11"]
[Round "2"]
[White "Ratsma, Rosa"]
[Black "Petraki, Maria"]
[Result "1-0"]
[ECO "B90"]
[WhiteElo "2265"]
[BlackElo "1962"]
[Annotator "NA"]
[PlyCount "71"]
[EventDate "2018.07.10"]
[EventType "team-tourn"]
[EventCountry "GRE"]
[SourceTitle "playchess.com"]
[Source "ChessBase"]
[SourceQuality "1"]
[TimeControl "40/5400+30:1800+30"]

1. e4 {[%emt 0:00:00]} c5 {[%emt 0:01:04]} 2. Nf3 {[%emt 0:00:00]} d6 {[%emt 0:00:26]} 3. d4 {[%emt 0:00:00]} cxd4 {[%emt 0:00:02]} 4. Nxd4 {[%emt 0:00:00]} Nf6 {[%emt 0:00:21]} 5. Nc3 {[%emt 0:00:03]} a6 {[%emt 0:00:14]} 6. h3 {[%emt 0:01:01]} e5 {[%emt 0:01:04]} 7. Nde2 {[%emt 0:00:26]} h5 {[%emt 0:01:06]} 8. g3 {[%emt 0:02:50]} Qc7 {[%emt 0:16:44]} 9. Bg5 {[%emt 0:06:37]} Nbd7 {[%emt 0:04:45]} 10. Bg2 {[%emt 0:02:02]} b6 {[%emt 0:09:28]} 11. Nd5 {[%emt 0:04:34]} Nxd5 {[%emt 0:01:53]} 12. exd5 {[%emt 0:00:14]} g6 {[%emt 0:09:31]} 13. Qd2 {[%emt 0:02:35]} Bg7 {[%emt 0:03:42]} 14. Rc1 {[%emt 0:06:37]} f6 {[%emt 0:13:40]} 15. Be3 {[%emt 0:01:07]} a5 {[%emt 0:08:18]} 16. f4 {[%emt 0:09:00]} O-O 17. O-O {[%emt 0:02:39]} Ba6 {[%emt 0:05:18]} 18. c4 {[%emt 0:00:30]} Rae8 {[%emt 0:10:04]} 19. f5 {[%emt 0:02:48]} Nc5 20. g4 hxg4 {[%emt 0:04:14]} 21. hxg4 {[%emt 0:08:46]} g5 {[%emt 0:00:07]} 22. b3 {[%emt 0:03:04]} Kf7 {[%emt 0:02:28]} 23. Ng3 {[%emt 0:02:45]} Rh8 {[%emt 0:00:46]} 24. Nh5 {[%emt 0:01:11]} Bh6 {[%emt 0:02:08]} 25. Rf3 {[%emt 0:03:57]} Rh7 {[%emt 0:02:41]} 26. Rh3 {[%emt 0:00:46]} Reh8 {[%emt 0:00:04]} 27. Kf2 {[%emt 0:03:23]} b5 {[%emt 0:00:38]} 28. cxb5 {[%emt 0:01:32]} Bxb5 {[%emt 0:00:09]} 29. Bxc5 {[%emt 0:00:44]} dxc5 {[%emt 0:00:45]} 30. d6 {[%emt 0:00:24]} Qb6 {[%emt 0:00:18]} 31. Qd5+ {[%emt 0:00:46]} Kf8 {[%emt 0:00:26]} 32. Qxc5 {[%emt 0:00:58]} Qxc5+ {[%emt 0:01:19]} 33. Rxc5 {[%emt 0:00:07]} Bd7 {[%emt 0:00:40]} 34. Rxa5 {[%emt 0:01:15]} Bxf5 {[%emt 0:01:28]} 35. gxf5 {[%emt 0:00:33]} g4 {[%emt 0:00:25]} 36. Ra8+ {[%emt 0:00:15]} 1-0

[Event "46th GRE-chT Premier 2018"]
[Site "Rio Achaia"]
[Date "2018.07.11"]
[Round "2"]
[White "Avramidou, Anastasia"]
[Black "Salahidou, Reveka"]
[Result "1-0"]
[ECO "E61"]
[WhiteElo "2262"]
[BlackElo "1955"]
[Annotator "NA"]
[PlyCount "65"]
[EventDate "2018.07.10"]
[EventType "team-tourn"]
[EventCountry "GRE"]
[SourceTitle "playchess.com"]
[Source "ChessBase"]
[SourceQuality "1"]
[TimeControl "40/5400+30:1800+30"]

1. d4 {[%emt 0:00:00]} Nf6 {[%emt 0:00:00]} 2. c4 {[%emt 0:00:00]} g6 {[%emt 0:00:00]} 3. Nc3 {[%emt 0:00:00]} c5 {[%emt 0:00:00]} 4. d5 {[%emt 0:00:25]} d6 $14 {[%emt 0:00:00] LiveBook: 1908 Partien} 5. e4 {[%emt 0:00:13]} Bg7 {[%emt 0:00:04]} 6. Bd3 {[%emt 0:00:06]} O-O {[%emt 0:00:07]} 7. Nge2 {[%emt 0:00:03]} e6 {[%emt 0:01:26]} 8. Bg5 {[%emt 0:00:47]} h6 {[%emt 0:03:43]} 9. Bh4 {[%emt 0:00:19]} Re8 {[%emt 0:09:54]} 10. O-O {[%emt 0:10:15]} exd5 {[%emt 0:02:41]} 11. exd5 {[%emt 0:00:06]} Nbd7 {[%emt 0:00:46]} 12. f4 {[%emt 0:04:35]} a6 {[%emt 0:04:30]} 13. a4 {[%emt 0:04:17]} Qc7 {[%emt 0:00:40]} 14. Qd2 {[%emt 0:19:09]} Nf8 {[%emt 0:05:18]} 15. Rae1 {[%emt 0:01:50]} Bd7 {[%emt 0:02:03]} 16. Bxf6 {[%emt 0:10:53]} Bxf6 {[%emt 0:00:07]} 17. f5 {[%emt 0:00:03]} Bg5 {[%emt 0:01:23]} 18. Qc2 {[%emt 0:02:20]} Kg7 {[%emt 0:06:12]} 19. Ng3 {[%emt 0:11:28]} Be3+ {[%emt 0:07:37]} 20. Kh1 {[%emt 0:00:07]} Bd4 {[%emt 0:00:05]} 21. f6+ {[%emt 0:16:58]} Kg8 {[%emt 0:13:12]} 22. Re4 {[%emt 0:00:52]} Rxe4 {[%emt 0:05:18]} 23. Ncxe4 {[%emt 0:00:19]} Be5 {[%emt 0:08:55]} 24. Qd2 {[%emt 0:05:52]} Kh7 {[%emt 0:03:40]} 25. Ng5+ {[%emt 0:01:39]} hxg5 {[%emt 0:09:36]} 26. Qxg5 {[%emt 0:00:05]} Re8 {[%emt 0:03:03]} 27. Ne4 {[%emt 0:02:06]} Bg4 {[%emt 0:07:57]} 28. Qxg4 {[%emt 0:00:18]} Nd7 {[%emt 0:01:25]} 29. Ng5+ {[%emt 0:02:12]} Kg8 {[%emt 0:00:42]} 30. Nxf7 {[%emt 0:00:43]} Nxf6 {[%emt 0:01:12]} 31. Qxg6+ {[%emt 0:00:11]} Kf8 {[%emt 0:00:19]} 32. Ng5 {[%emt 0:00:12]} Ke7 {[%emt 0:00:45]} 33. Ne6 {[%emt 0:01:45]} 1-0

[Event "46th GRE-chT Premier 2018"]
[Site "Rio Achaia"]
[Date "2018.07.11"]
[Round "2"]
[White "Balokas, Dimitrios"]
[Black "Tsakiris, Haralambos"]
[Result "1/2-1/2"]
[ECO "A05"]
[WhiteElo "2259"]
[BlackElo "2222"]
[Annotator "NA"]
[PlyCount "26"]
[EventDate "2018.07.10"]
[EventType "team-tourn"]
[EventCountry "GRE"]
[SourceTitle "playchess.com"]
[Source "ChessBase"]
[SourceQuality "1"]
[TimeControl "40/5400+30:1800+30"]

1. Nf3 {[%emt 0:00:00]} Nf6 {[%emt 0:00:55]} 2. c4 {[%emt 0:00:00]} e6 {[%emt 0:00:34]} 3. g3 {[%emt 0:00:00]} d5 {[%emt 0:00:10]} 4. d4 {[%emt 0:00:07]} Bb4+ {[%emt 0:00:53]} 5. Bd2 {[%emt 0:00:08]} Be7 {[%emt 0:00:41]} 6. Bg2 {[%emt 0:00:09]} O-O {[%emt 0:00:17]} 7. Qc2 {[%emt 0:00:07]} c6 {[%emt 0:00:22]} 8. O-O {[%emt 0:00:09]} Nbd7 {[%emt 0:01:21]} 9. Rd1 {[%emt 0:00:09]} b6 {[%emt 0:01:13]} 10. Bf4 {[%emt 0:00:42]} Nh5 {[%emt 0:00:05]} 11. Bc1 {[%emt 0:00:07]} Nhf6 {[%emt 0:00:02]} 12. Bf4 {[%emt 0:00:10]} Nh5 {[%emt 0:00:05]} 13. Bc1 {[%emt 0:00:08]} Nhf6 {[%emt 0:00:32]} 1/2-1/2

[Event "46th GRE-chT Premier 2018"]
[Site "Rio Achaia"]
[Date "2018.07.11"]
[Round "2"]
[White "Alexiadis, Hristos"]
[Black "Petrakis, Stylianos"]
[Result "1-0"]
[ECO "A48"]
[WhiteElo "2244"]
[BlackElo "2024"]
[Annotator "NA"]
[PlyCount "81"]
[EventDate "2018.07.10"]
[EventType "team-tourn"]
[EventCountry "GRE"]
[SourceTitle "playchess.com"]
[Source "ChessBase"]
[SourceQuality "1"]
[TimeControl "40/5400+30:1800+30"]

1. d4 {[%emt 0:00:13]} Nf6 {[%emt 0:00:00]} 2. Nf3 {[%emt 0:00:37]} g6 {[%emt 0:00:12]} 3. Bg5 {[%emt 0:00:11]} Bg7 {[%emt 0:00:15]} 4. Nbd2 {[%emt 0:00:22]} d6 {[%emt 0:03:53]} 5. c3 {[%emt 0:01:11]} O-O {[%emt 0:02:14]} 6. e4 {[%emt 0:00:23]} Nbd7 {[%emt 0:02:27]} 7. Be2 {[%emt 0:00:21]} c5 {[%emt 0:03:07]} 8. O-O {[%emt 0:00:45]} b6 {[%emt 0:03:55]} 9. Re1 {[%emt 0:00:10]} Bb7 {[%emt 0:02:17]} 10. Bf1 {[%emt 0:00:25]} h6 {[%emt 0:08:04]} 11. Bh4 {[%emt 0:00:07]} g5 {[%emt 0:06:38]} 12. Bg3 {[%emt 0:00:15]} Nh5 {[%emt 0:00:36]} 13. a4 {[%emt 0:01:44]} Nxg3 {[%emt 0:08:32]} 14. hxg3 {[%emt 0:00:11]} Qc7 {[%emt 0:02:00]} 15. Bd3 {[%emt 0:03:17]} e6 {[%emt 0:03:34]} 16. Qe2 {[%emt 0:04:56]} Rae8 {[%emt 0:09:52]} 17. Rac1 {[%emt 0:05:52]} f6 {[%emt 0:09:54]} 18. Bb1 {[%emt 0:03:00]} Re7 {[%emt 0:06:12]} 19. Qd3 {[%emt 0:02:21]} Rd8 {[%emt 0:12:50]} 20. d5 {[%emt 0:11:48]} e5 {[%emt 0:07:13]} 21. c4 {[%emt 0:00:09]} h5 {[%emt 0:01:23]} 22. Nf1 {[%emt 0:00:07]} Bc8 {[%emt 0:01:24]} 23. Ne3 {[%emt 0:00:09]} Nf8 {[%emt 0:00:06]} 24. Bc2 {[%emt 0:00:28]} Bh8 {[%emt 0:00:33]} 25. a5 {[%emt 0:04:32]} Rh7 {[%emt 0:02:39]} 26. Ra1 {[%emt 0:00:28]} Ng6 {[%emt 0:01:16]} 27. Nf5 {[%emt 0:00:08]} h4 {[%emt 0:01:00]} 28. axb6 {[%emt 0:01:18]} axb6 {[%emt 0:00:05]} 29. Nh2 {[%emt 0:01:18]} hxg3 {[%emt 0:01:36]} 30. fxg3 {[%emt 0:00:04]} Bxf5 {[%emt 0:00:36]} 31. exf5 {[%emt 0:00:04]} Nf8 {[%emt 0:00:19]} 32. Ng4 {[%emt 0:00:33]} Nd7 {[%emt 0:00:45]} 33. Ba4 {[%emt 0:02:06]} Nb8 {[%emt 0:00:28]} 34. Bb5 {[%emt 0:00:17]} Qf7 {[%emt 0:00:29]} 35. Qe4 {[%emt 0:00:06]} Bg7 {[%emt 0:00:33]} 36. Kf2 {[%emt 0:00:09]} Rc8 {[%emt 0:00:30]} 37. Ra8 {[%emt 0:00:22]} Qb7 {[%emt 0:00:30]} 38. Rea1 {[%emt 0:00:08]} Bh8 {[%emt 0:00:08]} 39. Qe1 {[%emt 0:03:32]} Nd7 {[%emt 0:00:49]} 40. R8a7 {[%emt 0:00:00]} Qb8 {[%emt 0:00:00]} 41. Bxd7 {[%emt 0:00:20]} 1-0

[Event "46th GRE-chT Premier 2018"]
[Site "Rio Achaia"]
[Date "2018.07.11"]
[Round "2"]
[White "Michelakos, Panagiotis"]
[Black "Tassopoulos, Marios"]
[Result "1/2-1/2"]
[ECO "D35"]
[WhiteElo "2244"]
[BlackElo "2134"]
[Annotator "NA"]
[PlyCount "156"]
[EventDate "2018.07.10"]
[EventType "team-tourn"]
[EventCountry "GRE"]
[SourceTitle "playchess.com"]
[Source "ChessBase"]
[SourceQuality "1"]
[TimeControl "40/5400+30:1800+30"]

1. d4 {[%emt 0:01:40]} Nf6 {[%emt 0:00:00]} 2. c4 {[%emt 0:00:22]} e6 {[%emt 0:00:00]} 3. Nc3 {[%emt 0:00:49]} d5 {[%emt 0:00:05]} 4. cxd5 {[%emt 0:00:13]} exd5 {[%emt 0:00:07]} 5. Bg5 {[%emt 0:00:09]} Be7 {[%emt 0:00:08]} 6. e3 {[%emt 0:01:39]} c6 {[%emt 0:00:21]} 7. Bd3 {[%emt 0:00:18]} O-O {[%emt 0:00:16]} 8. Qc2 {[%emt 0:00:33]} Nbd7 {[%emt 0:00:15]} 9. Nge2 {[%emt 0:00:35]} Re8 {[%emt 0:00:14]} 10. O-O {[%emt 0:01:58]} Nf8 {[%emt 0:00:09]} 11. f3 {[%emt 0:07:12]} Be6 {[%emt 0:01:02]} 12. Rad1 {[%emt 0:06:28]} Rc8 {[%emt 0:00:52]} 13. e4 {[%emt 0:15:35]} dxe4 {[%emt 0:00:55]} 14. fxe4 {[%emt 0:00:05]} Ng4 {[%emt 0:07:53]} 15. Bxe7 {[%emt 0:00:11]} Qxe7 {[%emt 0:00:31]} 16. Qd2 {[%emt 0:00:06]} c5 {[%emt 0:11:34]} 17. d5 {[%emt 0:02:18]} Bd7 {[%emt 0:01:14]} 18. h3 {[%emt 0:13:30]} Ne5 {[%emt 0:00:48]} 19. Ng3 {[%emt 0:00:09]} c4 {[%emt 0:28:05]} 20. Bc2 {[%emt 0:05:12]} Qd6 {[%emt 0:09:23]} 21. Nf5 {[%emt 0:04:49]} Bxf5 {[%emt 0:00:36]} 22. exf5 {[%emt 0:00:12]} f6 {[%emt 0:07:34]} 23. Qd4 {[%emt 0:05:37]} Qc5 {[%emt 0:07:02]} 24. d6 {[%emt 0:05:52]} Red8 {[%emt 0:03:30]} 25. Be4 {[%emt 0:02:27]} b5 {[%emt 0:06:33]} 26. Qxc5 {[%emt 0:03:13]} Rxc5 {[%emt 0:00:08]} 27. Rd5 {[%emt 0:00:05]} Rxd5 {[%emt 0:02:28]} 28. Bxd5+ {[%emt 0:00:13]} Kh8 {[%emt 0:00:24]} 29. Nxb5 {[%emt 0:02:39]} a6 {[%emt 0:00:31]} 30. Na3 {[%emt 0:00:23]} Rxd6 {[%emt 0:03:49]} 31. Bxc4 {[%emt 0:00:11]} h5 {[%emt 0:03:24]} 32. Bb3 {[%emt 0:04:59]} Kh7 {[%emt 0:03:43]} 33. Rf4 {[%emt 0:13:06]} Kh6 {[%emt 0:01:38]} 34. h4 {[%emt 0:00:45]} g5 {[%emt 0:00:33]} 35. fxg6 {[%emt 0:02:21]} Nfxg6 {[%emt 0:00:14]} 36. Nc4 {[%emt 0:00:46]} Nxc4 {[%emt 0:01:03]} 37. Rxc4 {[%emt 0:00:05]} Rd2 {[%emt 0:00:14]} 38. Ra4 {[%emt 0:01:07]} Rxb2 {[%emt 0:00:23]} 39. Rxa6 {[%emt 0:01:03]} Nxh4 {[%emt 0:00:27]} 40. Rxf6+ {[%emt 0:00:00]} Kg5 {[%emt 0:00:00]} 41. Rf2 {[%emt 0:00:29]} Rb1+ {[%emt 0:01:53]} 42. Kh2 {[%emt 0:00:40]} Ra1 {[%emt 0:20:03]} 43. Rc2 {[%emt 0:03:42]} Nf5 {[%emt 0:01:58]} 44. Rc5 {[%emt 0:00:30]} Kf6 {[%emt 0:01:22]} 45. Rd5 {[%emt 0:19:39]} Re1 {[%emt 0:01:12]} 46. Rd1 {[%emt 0:00:28]} Re3 {[%emt 0:00:41]} 47. Bc2 {[%emt 0:02:58]} Rc3 {[%emt 0:02:29]} 48. Bxf5 {[%emt 0:05:36]} Kxf5 {[%emt 0:00:01]} 49. Rd5+ {[%emt 0:00:12]} Kg4 {[%emt 0:00:32]} 50. Rd4+ {[%emt 0:00:45]} Kg5 {[%emt 0:00:12]} 51. Ra4 {[%emt 0:00:46]} h4 {[%emt 0:00:46]} 52. Ra8 {[%emt 0:00:21]} Rd3 {[%emt 0:04:20]} 53. a4 {[%emt 0:00:24]} Kg6 {[%emt 0:01:16]} 54. a5 {[%emt 0:00:12]} Kg7 {[%emt 0:00:26]} 55. a6 {[%emt 0:00:10]} Rd6 {[%emt 0:00:23]} 56. Kh3 {[%emt 0:00:22]} Rg6 {[%emt 0:01:02]} 57. a7 {[%emt 0:00:26]} Ra6 {[%emt 0:00:19]} 58. Kxh4 {[%emt 0:00:07]} Ra1 {[%emt 0:00:21]} 59. g4 {[%emt 0:00:29]} Ra5 {[%emt 0:00:19]} 60. Kg3 {[%emt 0:01:39]} Ra4 {[%emt 0:00:11]} 61. g5 {[%emt 0:00:35]} Ra1 {[%emt 0:00:15]} 62. Kf4 {[%emt 0:00:34]} Ra2 {[%emt 0:00:12]} 63. Kf5 {[%emt 0:00:22]} Ra5+ {[%emt 0:00:18]} 64. Kg4 {[%emt 0:00:10]} Ra4+ {[%emt 0:00:16]} 65. Kh5 {[%emt 0:00:42]} Ra5 {[%emt 0:00:16]} 66. Rb8 {[%emt 0:00:51]} Rxa7 {[%emt 0:00:07]} 67. Rb6 {[%emt 0:00:05]} Rc7 {[%emt 0:00:19]} 68. Rg6+ {[%emt 0:00:25]} Kh7 {[%emt 0:00:10]} 69. Rb6 {[%emt 0:00:22]} Kg7 {[%emt 0:00:14]} 70. Kg4 {[%emt 0:00:02]} Rc4+ {[%emt 0:00:27]} 71. Kh5 {[%emt 0:00:43]} Rc7 {[%emt 0:00:06]} 72. Rd6 {[%emt 0:00:54]} Rb7 {[%emt 0:00:10]} 73. Rd5 {[%emt 0:00:25]} Ra7 {[%emt 0:00:24]} 74. Rb5 {[%emt 0:01:14]} ({Finger weg von} 74. Rd6 $6 Rc7 $16) 74... Rc7 {[%emt 0:00:12]} 75. g6 {[%emt 0:00:25]} Rc1 {[%emt 0:01:31]} 76. Rb7+ {[%emt 0:00:06]} Kg8 {[%emt 0:00:05]} 77. Kg5 $11 {[%emt 0:00:39]} Rg1+ {[%emt 0:00:09]} 78. Kf6 {[%emt 0:00:26]} Rf1+ {[%emt 0:00:07]} 1/2-1/2

[Event "46th GRE-chT Premier 2018"]
[Site "Rio Achaia"]
[Date "2018.07.11"]
[Round "2"]
[White "Georgiou, Kostantinos"]
[Black "Papakonstantinou, Dimitrios"]
[Result "1/2-1/2"]
[ECO "B00"]
[WhiteElo "2242"]
[BlackElo "2336"]
[Annotator "NA"]
[PlyCount "158"]
[EventDate "2018.07.10"]
[EventType "team-tourn"]
[EventCountry "GRE"]
[SourceTitle "playchess.com"]
[Source "ChessBase"]
[SourceQuality "1"]
[TimeControl "40/5400+30:1800+30"]

1. e4 {[%emt 0:00:00]} d6 {[%emt 0:00:00]} 2. Nc3 {[%emt 0:00:13]} Nf6 {[%emt 0:01:01]} 3. b3 {[%emt 0:03:04]} g6 {[%emt 0:04:23]} 4. Bb2 {[%emt 0:00:42]} Bg7 {[%emt 0:00:05]} 5. d4 {[%emt 0:00:54]} O-O {[%emt 0:01:33]} 6. f3 {[%emt 0:01:56]} c5 {[%emt 0:03:39]} 7. dxc5 {[%emt 0:13:18]} Qa5 {[%emt 0:02:53]} 8. Qd2 {[%emt 0:00:09]} Qxc5 {[%emt 0:00:32]} 9. O-O-O {[%emt 0:01:38]} Nc6 {[%emt 0:06:29]} 10. Kb1 {[%emt 0:02:23]} Bd7 {[%emt 0:15:44]} 11. g4 {[%emt 0:06:16]} Rfc8 {[%emt 0:02:51]} 12. h4 {[%emt 0:08:12]} h5 {[%emt 0:05:17]} 13. g5 {[%emt 0:06:21]} Ne8 {[%emt 0:00:57]} 14. Bh3 {[%emt 0:03:43]} Bxh3 {[%emt 0:01:41]} 15. Rxh3 {[%emt 0:00:32]} b5 {[%emt 0:03:31]} 16. f4 {[%emt 0:03:27]} e6 {[%emt 0:02:09]} 17. f5 {[%emt 0:02:51]} gxf5 {[%emt 0:12:50]} 18. exf5 {[%emt 0:00:29]} Qxf5 {[%emt 0:00:04]} 19. Rf3 {[%emt 0:06:20]} Qg6 {[%emt 0:03:50]} 20. Nxb5 {[%emt 0:07:29]} Bxb2 {[%emt 0:03:08]} 21. Kxb2 {[%emt 0:00:12]} Rab8 {[%emt 0:01:24]} 22. Na3 {[%emt 0:06:36]} Ne5 {[%emt 0:01:57]} 23. Rf2 {[%emt 0:02:48]} d5 {[%emt 0:01:23]} 24. Nh3 {[%emt 0:02:56]} Nd6 {[%emt 0:03:35]} 25. Qd4 {[%emt 0:03:47]} Nc6 {[%emt 0:07:31]} 26. Qf6 {[%emt 0:05:42]} Ne4 {[%emt 0:00:39]} 27. Qxg6+ {[%emt 0:00:16]} fxg6 {[%emt 0:00:01]} 28. Rff1 {[%emt 0:00:52]} Ne7 {[%emt 0:02:06]} 29. Nf4 {[%emt 0:01:36]} Rb6 {[%emt 0:00:13]} 30. c4 {[%emt 0:04:20]} Ng3 {[%emt 0:09:42]} 31. Rf3 {[%emt 0:01:06]} Ngf5 {[%emt 0:00:10]} 32. cxd5 {[%emt 0:00:40]} exd5 {[%emt 0:00:11]} 33. Nxd5 {[%emt 0:00:50]} Nxd5 {[%emt 0:00:29]} 34. Rxd5 {[%emt 0:00:05]} Nxh4 {[%emt 0:01:28]} 35. Rf4 {[%emt 0:01:00]} Nf5 {[%emt 0:00:35]} 36. Nc4 {[%emt 0:01:34]} Re6 {[%emt 0:00:18]} 37. Ne5 {[%emt 0:01:31]} Ne3 {[%emt 0:02:00]} 38. Ra5 {[%emt 0:00:30]} Rc7 {[%emt 0:00:51]} 39. Rf6 {[%emt 0:00:30]} Rxf6 {[%emt 0:00:58]} 40. gxf6 {[%emt 0:00:00]} Ng4 {[%emt 0:00:00]} 41. f7+ {[%emt 0:04:24]} Kg7 {[%emt 0:02:47]} 42. f8=Q+ {[%emt 0:00:59]} Kxf8 {[%emt 0:00:02]} 43. Nxg6+ {[%emt 0:00:11]} Kf7 {[%emt 0:06:59]} 44. Nf4 {[%emt 0:00:37]} Nf6 {[%emt 0:00:42]} 45. Nxh5 {[%emt 0:00:59]} Nxh5 {[%emt 0:00:17]} 46. Rxh5 {[%emt 0:00:05]} Ke6 {[%emt 0:00:12]} 47. b4 {[%emt 0:01:17]} Kd6 {[%emt 0:04:56]} 48. Kb3 {[%emt 0:00:35]} Kc6 {[%emt 0:04:33]} 49. Rh6+ {[%emt 0:02:20]} Kb7 {[%emt 0:00:32]} 50. Ka4 {[%emt 0:02:27]} Rg7 {[%emt 0:00:20]} 51. Ka5 {[%emt 0:01:30]} Rg5+ {[%emt 0:00:34]} 52. b5 {[%emt 0:00:17]} Rg7 {[%emt 0:00:03]} 53. Re6 {[%emt 0:00:21]} Rh7 {[%emt 0:00:14]} 54. a4 {[%emt 0:00:25]} Rg7 {[%emt 0:00:46]} 55. Re4 {[%emt 0:01:08]} Rg1 {[%emt 0:05:29]} 56. Re7+ {[%emt 0:00:28]} Kb8 {[%emt 0:00:02]} 57. Rd7 {[%emt 0:02:36]} Rh1 {[%emt 0:00:21]} 58. Ka6 {[%emt 0:04:38]} Rh6+ {[%emt 0:00:08]} 59. Ka5 {[%emt 0:00:05]} Rh1 {[%emt 0:00:02]} 60. Kb4 {[%emt 0:00:35]} Rb1+ {[%emt 0:00:16]} 61. Kc4 {[%emt 0:00:37]} Rc1+ {[%emt 0:00:14]} 62. Kb3 {[%emt 0:00:17]} Rb1+ {[%emt 0:00:32]} 63. Ka2 {[%emt 0:00:22]} Rh1 {[%emt 0:01:17]} 64. Rd4 {[%emt 0:01:40]} Rh3 {[%emt 0:00:28]} 65. Kb2 {[%emt 0:01:18]} Kb7 {[%emt 0:00:56]} 66. Re4 {[%emt 0:00:37]} Rg3 {[%emt 0:00:26]} 67. Re5 {[%emt 0:00:24]} Kb6 {[%emt 0:00:44]} 68. Re6+ {[%emt 0:00:17]} Kc7 {[%emt 0:00:32]} 69. Kc2 {[%emt 0:04:08]} Rh3 {[%emt 0:01:03]} 70. Rf6 {[%emt 0:01:39]} Rg3 {[%emt 0:00:12]} 71. Rc6+ {[%emt 0:02:00]} Kb7 {[%emt 0:00:08]} 72. Rh6 {[%emt 0:01:25]} Kc7 {[%emt 0:00:29]} 73. Kd2 {[%emt 0:01:44]} Ra3 {[%emt 0:00:33]} 74. Rc6+ {[%emt 0:01:31]} Kb7 {[%emt 0:00:10]} 75. Rc4 {[%emt 0:00:12]} Kb6 {[%emt 0:00:26]} 76. Kc2 {[%emt 0:01:52]} Ka5 {[%emt 0:01:13]} 77. Rc7 {[%emt 0:00:13]} Rxa4 {[%emt 0:00:14]} 78. Rxa7+ {[%emt 0:00:08]} Kxb5 {[%emt 0:00:04]} 79. Rxa4 {[%emt 0:00:07]} Kxa4 {[%emt 0:00:02]} 1/2-1/2

[Event "46th GRE-chT Premier 2018"]
[Site "Rio Achaia"]
[Date "2018.07.11"]
[Round "2"]
[White "Alexakis, Dimitris"]
[Black "Triantos, Konstantinos"]
[Result "1-0"]
[ECO "B54"]
[WhiteElo "2232"]
[BlackElo "2078"]
[Annotator "NA"]
[PlyCount "51"]
[EventDate "2018.07.10"]
[EventType "team-tourn"]
[EventCountry "GRE"]
[SourceTitle "playchess.com"]
[Source "ChessBase"]
[SourceQuality "1"]
[TimeControl "40/5400+30:1800+30"]

1. e4 {[%emt 0:08:46]} c5 {[%emt 0:00:00]} 2. Nf3 {[%emt 0:00:13]} d6 {[%emt 0:00:00]} 3. d4 {[%emt 0:00:28]} cxd4 {[%emt 0:00:00]} 4. Nxd4 {[%emt 0:00:31]} Nf6 {[%emt 0:00:00]} 5. f3 {[%emt 0:00:06]} e5 {[%emt 0:02:37]} 6. Nb3 {[%emt 0:00:06]} Be7 {[%emt 0:01:55]} 7. c4 {[%emt 0:00:05]} a5 {[%emt 0:03:32]} 8. Be3 {[%emt 0:00:58]} a4 {[%emt 0:10:34]} 9. Nc1 {[%emt 0:00:12]} O-O {[%emt 0:03:55]} 10. Nc3 {[%emt 0:01:05]} Bd7 {[%emt 0:00:06]} 11. Be2 {[%emt 0:00:45]} Qa5 {[%emt 0:08:55]} 12. Qd2 {[%emt 0:01:29]} Nc6 {[%emt 0:12:59]} 13. O-O {[%emt 0:09:57]} Rfc8 {[%emt 0:07:31]} 14. Rd1 {[%emt 0:07:13]} a3 {[%emt 0:07:34]} 15. Nb3 {[%emt 0:03:22]} Qb4 {[%emt 0:03:33]} 16. bxa3 {[%emt 0:03:04]} Rxa3 {[%emt 0:00:08]} 17. Nb5 {[%emt 0:03:50]} Raa8 {[%emt 0:06:16]} 18. Nxd6 {[%emt 0:08:36]} Bxd6 {[%emt 0:01:49]} 19. Qxd6 {[%emt 0:00:14]} Qxd6 {[%emt 0:00:52]} 20. Rxd6 {[%emt 0:00:07]} Nb4 {[%emt 0:00:03]} 21. Rd2 {[%emt 0:08:03]} Ra3 {[%emt 0:06:21]} 22. Bf2 {[%emt 0:03:11]} Bc6 {[%emt 0:11:01]} 23. Bc5 {[%emt 0:04:26]} Ra4 {[%emt 0:00:02]} 24. Bd6 {[%emt 0:01:20]} Rca8 {[%emt 0:05:13]} 25. Nc1 {[%emt 0:05:30]} Nd7 {[%emt 0:03:27]} 26. Bd1 1-0